Cogmind - Beta 16 @@@ ROGUE MODE // 2025.11.11 @ 20:04:45 Player: Byrd Result: Destroyed by D-53 Grenadier with Mini Grenade Launcher Performance ------------- Evolutions (1) 500 Regions Visited (4) 800 Robots Destroyed (46) 230 Value Destroyed (894) 894 Prototype IDs (0) 0 Alien Tech Used (0) 0 Bonus (0) 0 TOTAL SCORE: 2424 Bonus ------- None Cogmind --------- Core Integrity 0/400 Matter 160/300 Energy 100/100 System Corruption 0% Temperature Cool (0) Movement Core (350) Ox6 Location -9/Mines Parts ------- > --- POWER (1) -------- (None) > --- PROPULSION (2) --- (None) > --- UTILITY (3) ------ Large Storage Unit > --- WEAPON (3) ------- (None) > --- INVENTORY (15) --- Light Ion Engine Light Ion Engine Aluminum Leg Small Storage Unit Small Laser Light Assault Rifle Grenade Launcher Grenade Launcher Grenade Launcher Datajack Mining Laser Mining Laser Mining Laser Peak State ------------ > --- POWER ------------ Light Ion Engine > --- PROPULSION ------- Light Treads Light Treads > --- UTILITY ---------- Small Storage Unit Large Storage Unit Medium Armor Plating > --- WEAPON ----------- Assault Rifle Assault Rifle Grenade Launcher > --- INVENTORY -------- Ion Engine Light Ion Engine Light Ion Engine Light Treads Aluminum Leg Medium Armor Plating EM Pulse Gun Small Laser Light Assault Rifle Datajack Mining Laser Mining Laser Mining Laser [Rating: 11] Favorites ----------- Power Light Ion Engine Engine Light Ion Engine Propulsion Light Treads Treads Light Treads Utility Small Storage Unit Storage Small Storage Unit Protection Medium Armor Plating Weapon Assault Rifle Energy Gun EM Pulse Gun Ballistic Gun Assault Rifle Launcher Grenade Launcher Build | -11 -10 -10 -9 -9 ------- Run | Yrd Mat Min Mat Min Slots Evolved 2 | . . . 2 . Power . | . . . . . Propulsion . | . . . . . Utility 1 | . . . 1 . Weapon 1 | . . . 1 . Parts Attached 15 | 6 2 . 7 . Power 2 | 1 . . 1 . Engine 2 | 1 . . 1 . Core . | . . . . . Reactor . | . . . . . Propulsion 3 | 2 . . 1 . Treads 3 | 2 . . 1 . Leg . | . . . . . Wheel . | . . . . . Hover . | . . . . . Flight . | . . . . . Utility 4 | 1 1 . 2 . Device . | . . . . . Storage 2 | 1 1 . . . Processor . | . . . . . Hackware . | . . . . . Protection 2 | . . . 2 . Artifact . | . . . . . Weapon 6 | 2 1 . 3 . Energy Gun 1 | 1 . . . . Energy Cannon . | . . . . . Ballistic Gun 3 | 1 . . 2 . Ballistic Cannon . | . . . . . Launcher 2 | . 1 . 1 . Special Weapon . | . . . . . Impact Weapon . | . . . . . Slashing Weapon . | . . . . . Piercing Weapon . | . . . . . Special Melee Weapon . | . . . . . Unidentified Prototypes . | . . . . . Parts Lost 12 | . . . 5 7 Power 2 | . . . 1 1 Propulsion 3 | . . . 1 2 Utility 2 | . . . 1 1 Weapon 5 | . . . 2 3 Highest Loss Streak 7 | . . . 2 7 To Critical Strikes . | . . . . . Average Backups 10 | 2 7 10 13 13 Power 1 | . 1 1 2 2 Propulsion . | . 1 . 1 1 Utility . | . . 2 1 1 Weapon 6 | . 4 6 7 8 Tool/Special . | . . . . . Unused Backups 14 | . 3 . . 11 Power 2 | . . . . 2 Propulsion 4 | . 3 . . 1 Utility . | . . . . . Weapon 7 | . . . . 7 Tool/Special 1 | . . . . 1 Average Slot Usage (%) 92 | . 88 100 92 82 Engine 12 | . 14 14 11 10 Treads 25 | . 28 28 21 20 Storage 19 | . 17 28 16 11 Protection 4 | . . . 10 10 Energy Gun 4 | . 10 . 2 10 Ballistic Gun 17 | . 14 14 22 20 Launcher 6 | . 3 14 5 . Peak Build Rating 11 | 6 8 8 11 10 Average Rating 8 | 3 6 8 10 9 On Entrance 6 | . 6 8 8 10 Avg Prop Armor Cover (%) . | . . . . . Naked Turns . | . . . . . Heaviest Build 42 | 12 33 33 42 37 Greatest Support 40 | 40 40 40 40 40 Greatest Overweight (x) 6 | 1 . . 2 6 Average Overweight (x) . | . . . . . Largest Inventory Capacity 15 | 8 15 15 15 15 Average Capacity 12 | 6 9 15 15 15 Most Carried 15 | 4 10 12 15 13 Average Carried 10 | 2 7 10 13 13 Final Capacity 15 | 8 15 15 15 15 Final Carried 13 | 4 10 12 13 13 Class Distribution -------------------- 62% | Mutant 37% | Tank Dominant Class ---------------- Mutant | -10/Materials Mutant | -10/Mines Tank | -9/Materials Tank | -9/Mines Resources | -11 -10 -10 -9 -9 ----------- Run | Yrd Mat Min Mat Min Matter Collected 709 | 260 47 13 389 . Remotely . | . . . . . Salvage Created 1005 | 109 343 20 533 . Parts 87 | 6 24 5 52 . Haulers Intercepted 2 | . 1 . 1 . Recyclers Shooed 1 | . 1 . . . Parts Field Recycled . | . . . . . Retrieved Matter . | . . . . . Parts Self-Destructed . | . . . . . Prevented . | . . . . . Parts Restored . | . . . . . Kills | -11 -10 -10 -9 -9 ------- Run | Yrd Mat Min Mat Min Combat Hostiles Destroyed 29 | . 7 3 19 . Guns 11 | . 1 . 10 . AOE 18 | . 6 3 9 . Classes Destroyed 9 | 2 5 1 1 . Worker 4 | . 1 . 3 . Builder 2 | . 1 . 1 . Tunneler 2 | 1 . . 1 . Hauler 2 | . 1 . 1 . Recycler 1 | 1 . . . . Watcher 6 | . 2 . 4 . Swarmer 13 | . . 3 10 . Grunt 13 | . 7 . 6 . Sentry 3 | . . . 3 . Best Kill Streak 7 | 2 6 3 7 . Combat Bots Only 6 | . 3 3 6 . Max Kills in Single Turn 3 | 1 3 3 3 . Gunslinging . | . . . . . Exploded 3 | . 2 3 3 . Melee . | . . . . . Uniques/NPCs Destroyed . | . . . . . Combat | -11 -10 -10 -9 -9 -------- Run | Yrd Mat Min Mat Min Hostile Shots Fired 158 | . 20 1 119 18 Missed 42 | . 6 . 36 . Hits 116 | . 14 1 83 18 Projectile 116 | . 14 1 83 18 AOE 18 | . . . . 18 Critical Strikes 1 | . . . 1 . Damage Taken 1805 | . 180 20 896 709 Core 445 | . 30 . 87 328 Absorbed by Shields . | . . . . . Core Remaining (%) 94 | 100 . 88 . . Volleys Fired 69 | 4 22 1 40 2 Largest 3 | 1 2 1 3 3 Hottest 90 | 40 60 30 90 80 Shots Fired 149 | 4 32 1 106 6 Gun 122 | 4 22 . 90 6 Cannon . | . . . . . Launcher 27 | . 10 1 16 . Special . | . . . . . Kinetic 99 | . 15 . 80 4 Thermal . | . . . . . Explosive 27 | . 10 1 16 . Electromagnetic 23 | 4 7 . 10 2 Robot Hit Streak 12 | 4 4 . 12 2 Robot Miss Streak 4 | . 3 . 4 1 Penetration Max . | . . . . . Secondary Targets 1 | . . . 1 . Max Gunslinging Chain 1 | . . . 1 . Shots Hit Robots 79 | 4 15 . 56 4 Core Hits 78 | 4 23 3 44 4 Critical Kills . | . . . . . Critical Parts Destroyed 1 | . . . 1 . Critical Strikes 1 | . . . 1 . Destroy 1 | . . . 1 . Melee Attacks . | . . . . . Impact . | . . . . . Slashing . | . . . . . Piercing . | . . . . . Sneak Attacks . | . . . . . Combat Hostiles . | . . . . . Follow-up Attacks . | . . . . . Damage Inflicted 2469 | 83 719 127 1488 52 Guns 921 | 53 201 . 615 52 Cannons . | . . . . . Explosions 1525 | 30 508 127 860 . Melee . | . . . . . Ramming 23 | . 10 . 13 . Kinetic 713 | . 118 . 564 31 Thermal 30 | 30 . . . . Explosive 1452 | . 465 127 860 . Electromagnetic 251 | 53 126 . 51 21 Impact . | . . . . . Slashing . | . . . . . Piercing . | . . . . . Highest Corruption . | . . . . . Average Corruption . | . . . . . Corruption Purged . | . . . . . Corruption Blocked . | . . . . . Overload Shots . | . . . . . Overflow Damage 3 | . . . 3 . Projectiles . | . . . . . Explosions 3 | . . . 3 . Melee . | . . . . . Knockbacks 1 | . . . 1 . Impact 1 | . . . 1 . Kinetic . | . . . . . Secondary . | . . . . . Self-Inflicted Damage 69 | . 25 13 31 . Shots 3 | . 1 1 1 . Rammed 3 | . 1 . 2 . Targets Rammed 5 | . 1 . 4 . Kicked . | . . . . . Crushed 2 | . . . 2 . Highest Temperature 60 | . 12 . 60 15 Average Temperature 17 | . 6 . 18 11 Received Heat Transfer 324 | . 84 . 240 . Siege Activations . | . . . . . Martial Activations . | . . . . . Shielding Activations . | . . . . . Robots Disrupted . | . . . . . Combat Hostiles . | . . . . . Robots Corrupted . | . . . . . Combat Hostiles . | . . . . . Parts Fried . | . . . . . Impact Corruptions . | . . . . . Robots Melted . | . . . . . Combat Hostiles . | . . . . . Parts Melted . | . . . . . Heat Transferred 100 | 100 . . . . Parts Sabotaged . | . . . . . Parts Stolen . | . . . . . Parts Stripped . | . . . . . Power Chain Reactions 1 | 1 . . . . Alert | -11 -10 -10 -9 -9 ------- Run | Yrd Mat Min Mat Min Maximum Alert Level 1 | . . . 1 . Low Security (%) 72 | 100 100 100 28 100 Level 1 27 | . . . 71 . Level 2 . | . . . . . Level 3 . | . . . . . Level 4 . | . . . . . Level 5 . | . . . . . High Security . | . . . . . Max Security . | . . . . . Peak Influence 309 | 10 154 79 309 86 Initial 86 | . . 55 27 86 Average 92 | . 28 10 205 54 Influence Increases 1003 | 10 256 79 658 . Destroy 0b10 Robot/C 580 | . 140 60 380 . Destroy 0b10 Robot/NC 85 | 10 25 . 50 . Destroy Leader 146 | . 36 10 100 . Disable Machine 60 | . 30 . 30 . Destroy Structure 102 | . 25 9 68 . Lose Combat Pursuer 30 | . . . 30 . Influence Decreases 1003 | 10 114 150 507 222 Entered New Map 267 | . . 87 44 136 Time Decay 650 | 10 114 63 413 50 Lost Part 86 | . . . 50 36 Squads Dispatched 7 | . 3 . 4 . Investigation 3 | . 2 . 1 . Extermination . | . . . . . Reinforcement 4 | . 1 . 3 . Assault . | . . . . . Garrison . | . . . . . Intercept . | . . . . . Searches Triggered . | . . . . . Construction Impeded . | . . . . . Haulers Reinforced . | . . . . . Active Scanning Responses . | . . . . . Cargo Convoy Interrupts . | . . . . . Stealth | -11 -10 -10 -9 -9 --------- Run | Yrd Mat Min Mat Min Distress Signals 7 | . 2 . 5 . Communications Jammed . | . . . . . Distress Signals . | . . . . . Times Spotted 52 | . 16 3 30 3 Peak Tracking Total 6 | . 3 3 6 2 Tactical Retreats 2 | . . . 2 . Traps | -11 -10 -10 -9 -9 ------- Run | Yrd Mat Min Mat Min Traps Triggered 2 | . 1 . 1 . Indirectly . | . . . . . Trap Hack Attempts . | . . . . . Triggered . | . . . . . Disarmed . | . . . . . Reprogrammed . | . . . . . Reused . | . . . . . Traps Extracted . | . . . . . Installed . | . . . . . Triggered . | . . . . . Machines | -11 -10 -10 -9 -9 ---------- Run | Yrd Mat Min Mat Min Machines Disabled 4 | . 2 . 2 . Max in Single Turn 1 | . 1 . 1 . Machines Repaired . | . . . . . Machines Dismantled . | . . . . . Machines Sabotaged . | . . . . . Overloaded Fab Kills . | . . . . . Hacking | -11 -10 -10 -9 -9 --------- Run | Yrd Mat Min Mat Min Machines Accessed . | . . . . . Terminals . | . . . . . Fabricators . | . . . . . Repair Stations . | . . . . . Recycling Units . | . . . . . Scanalyzers . | . . . . . Garrison Access . | . . . . . Total Hacks . | . . . . . Successful . | . . . . . Failed . | . . . . . Catastrophic . | . . . . . Database Lockouts . | . . . . . Manual . | . . . . . Terminals . | . . . . . Fabricators . | . . . . . Repair Stations . | . . . . . Recycling Units . | . . . . . Scanalyzers . | . . . . . Garrison Access . | . . . . . Terminal Hacks . | . . . . . Fabricator Hacks . | . . . . . Repair Station Hacks . | . . . . . Recycling Unit Hacks . | . . . . . Scanalyzer . | . . . . . Garrison Access Hacks . | . . . . . Unauthorized Hacks . | . . . . . Terminals . | . . . . . Fabricators . | . . . . . Repair Stations . | . . . . . Recycling Units . | . . . . . Scanalyzers . | . . . . . Garrison Access . | . . . . . Data Cores Recovered . | . . . . . Used . | . . . . . Hacking Detections . | . . . . . Full Trace Events . | . . . . . Feedback Events . | . . . . . Feedback Blocked . | . . . . . Robot Schematics Acquired . | . . . . . Robots Built . | . . . . . Authchips . | . . . . . Time . | . . . . . Total Robot Build Rating . | . . . . . Part Schematics Acquired . | . . . . . Parts Built . | . . . . . Authchips . | . . . . . Time . | . . . . . Total Part Build Rating . | . . . . . Part Studies Acquired . | . . . . . Parts Repaired . | . . . . . Time . | . . . . . Parts Recycled . | . . . . . Recycled Matter . | . . . . . Retrieved Matter . | . . . . . Retrieved Components . | . . . . . Parts Scanalyzed . | . . . . . Part Schematics Acquired . | . . . . . Parts Damaged . | . . . . . Bothacking | -11 -10 -10 -9 -9 ------------ Run | Yrd Mat Min Mat Min Used RIF Installer . | . . . . . Robots Hacked . | . . . . . Non-combat . | . . . . . Combat . | . . . . . Robot Hacks Applied . | . . . . . Relay Couplers Released . | . . . . . Fabnet Peak Effective % . | . . . . . Robots Rewired . | . . . . . Allies Hacked . | . . . . . Hacks Repelled . | . . . . . Allies | -11 -10 -10 -9 -9 -------- Run | Yrd Mat Min Mat Min Total Allies . | . . . . . Largest Group . | . . . . . Highest-Rated Group . | . . . . . Highest-Rated Ally . | . . . . . Total Orders . | . . . . . Ally Attacks . | . . . . . Total Damage . | . . . . . Kills . | . . . . . Allies Corrupted . | . . . . . Allies Melted . | . . . . . Intel | -11 -10 -10 -9 -9 ------- Run | Yrd Mat Min Mat Min Active Infowar (turns) . | . . . . . Robot Analysis Total . | . . . . . Derelict Logs Recovered . | . . . . . Drone Launches . | . . . . . Drone Recoveries . | . . . . . Exploration | -11 -10 -10 -9 -9 ------------- Run | Yrd Mat Min Mat Min Turns Passed 2644 | 122 835 550 1006 131 Spaces Moved 1331 | 90 362 342 462 75 Core 51 | 48 . . . 3 Treads 1280 | 42 362 342 462 72 Legs . | . . . . . Wheels . | . . . . . Hover . | . . . . . Flight . | . . . . . Fastest Speed 50 | 50 160 160 160 160 Average Speed 165 | 109 160 160 183 167 Slowest Speed 350 | 160 160 160 320 350 Overloaded Moves . | . . . . . Propulsion Burnouts . | . . . . . Robots Hopped . | . . . . . Potential Cave-ins . | . . . . . Cave-ins Triggered . | . . . . . Exploration Rate (%) 32 | 4 45 58 30 23 Regions Visited 4 Branch Regions 2 Pre-discovered Areas . | . . . . . Known Exits Taken . | . . . . . Unknown Exits Taken 4 | 1 1 1 1 . Scrap Searched . | . . . . . Spaces Dug . | . . . . . Terrain Destroyed 120 | 4 34 9 73 . Melee . | . . . . . Projectile . | . . . . . AOE 120 | 4 34 9 73 . Terrain Rammed . | . . . . . Walls Destroyed . | . . . . . Machines Disabled . | . . . . . Actions | -11 -10 -10 -9 -9 --------- Run | Yrd Mat Min Mat Min Total 1650 | 109 586 344 534 77 Wait 198 | . 187 . 11 . Move 1327 | 89 361 341 461 75 Hop . | . . . . . Pick Up 29 | 10 10 2 7 . Fast Attach . | . . . . . Attach 14 | 6 1 . 7 . Detach 1 | . . . 1 . Swap 4 | . 1 . 3 . Drop 3 | . 3 . . . Fire 69 | 4 22 1 40 2 Melee . | . . . . . Ram . | . . . . . Kick . | . . . . . Crush 5 | . 1 . 4 . Escape Stasis . | . . . . . Rewire . | . . . . . Trap . | . . . . . Miscellaneous . | . . . . . Route ------- -11/Scrapyard -10/Materials (discovered 2 exits: [*Mat] / [*Min]) -10/Mines -9/Materials -9/Mines History --------- Turn | Location | Event 17 | -11/Scrapyard | Discovered new exit (range 15) 123 | -11/Scrapyard | Entered Materials 314 | -10/Materials | Build established: Mutant 865 | -10/Materials | Discovered new exit (range 4) 906 | -10/Materials | Discovered new exit (range 15) 958 | -10/Materials | Entered Mines 1484 | -10/Mines | Discovered new exit (range 10) 1508 | -10/Mines | Entered Materials 1508 | -9/Materials | Evolved 2 slots: Utility x1, Weapon x1 1941 | -9/Materials | Build established: Tank 2089 | -9/Materials | Discovered new exit (range 10) 2514 | -9/Materials | Entered Mines 2579 | -9/Mines | Assembled infested the area 2638 | -9/Mines | Core integrity fell below 50% 2642 | -9/Mines | Core integrity fell below 20% 2645 | -9/Mines | Destroyed by D-53 Grenadier with Mini Grenade Launcher Last Messages --------------- A derelict is hurriedly installing traps. T-07 Excavator is excavating. K-01 Serf collects debris. ALERT: Infestation in the mines, dispatching Demolisher response squad. K-01 Serf collects debris. K-01 Serf cleans the Laser Drill. K-01 Serf collects debris. C-45 Heavy ARC bursts open, deploying its payload. D-53 Grenadier unfolds itself. Med. Armor Plating destroyed. Assault Rifle destroyed. EM Pulse Gun destroyed. Ion Engine destroyed. Lgt. Treads destroyed. Lgt. Assault Rifle destroyed. The unstable cave ceiling collapses. Lgt. Treads destroyed. The unstable cave ceiling collapses. Core Extractor disabled. The unstable cave ceiling collapses. Map ----- +----------------------------------------------------+ | ???? #???### ###??????? #?????????? | | ??# #??## ##????? #?????????? | | ??##? # #??# ##?? #??????????? | | ????# ### ???# ## #????????????? | | ????####??# ???# #?????????????? | | ??????????# ???# #?????????????? | | ??????????# ???## #?????????????? | | ??????????# ????### """ ##?????????????? | | ??????????? ??????## """ ##??????????????? | | ??????????? ??????## """ #???????????????? | | ???????????????????# ##???????????????? | | ??????????????????## ##????????????????? | | ??????????????????# ######????????????? | | ??????????????????# #????????????? | | ??????????????????# #????????????? | | ??????????????????# ## #????????????? | | ??????????????????## % #? ##???????????? | | ???????????????????## ##d ## ???????????? | | ????????????????????# # d # ? ??????????? | | ???????????????????## # ##??# ?????????? | | ???????????????????# ##????????????? | | ???????????????????## #????????????? | | ???????????????????# # #????????????? | | ???????????????????# #????????????? | | ???????????????????# #????????????? | | ???????????????????## @ #????????????? | | ????????????????????# #????????????? | | ????????????????? ?????????? | | ?????????????? " k #????????? | | ????????????# ## """ #####????????? | | ????????????# ???## """ ##????????????? | | ???????????? ??????# ###?????????????? | | ??????????????????? ###???????????????? | | ?????????????????? #??????????????????? | | ?????????????????# ??????????????????????? | | ?????????????????##????????????????????????? | | ???????????????????????????????????????????? | | ???????????????????????????????????????????? | | ???????????????????????????????????????????? | | ???????????????????????????????????????????? | | ???????????????????????????????????????????? | | ???????????????????????????????????????????? | | ???????????????????????????????????????????? | | ???????????????????????????????????????????? | | ???????????????????????????????????????????? | | ???????????????????????????????????????????? | | ???????????????????????????????????????????? | | ???????????????????????????????????????????? | | ???????????????????????????????????????????? | | ???????????????????????????????????????????? | +----------------------------------------------------+ Best States ------------- Heat Dissipation 28 Energy Generation 10 Energy Capacity 250 Matter Stores 300 Matter Capacity 300 Sight Range 16 Terrain Scan Density 10 Armor Coverage 225 Evasion (%) 50 Recoil Reduction 2 Item Schematics ----------------- None Robot Schematics ------------------ None Fabricated ------------ Nothing Repaired ---------- Nothing Studied --------- None Alien Tech Used ----------------- None Achievements -------------- None Challenges ------------ None Game ------ Seed MiningDispersalFlail Manual? 0 Play Time 00:23:13 Cumulative 1.9 hours Start 2025.11.11 @ 19:39:15 End 2025.11.11 @ 20:04:45 Sessions 1 Manual Loads 0 Difficulty Rogue Special Mode None Game No. 4 Rogue 4 Adventurer 0 Explorer 0 Win Type - Total 0 Types 0/0/0/0/0/0/0/0/0/0 Lore% 0 Gallery% 3 Achievement% 5 Wizard Run 0 Options --------- Layout 1 ASCII 0 Keyboard 0 Movement Arrows Keybinds 0 Fullscreen 2 Font 32/SmallcapsGlow Map View 77x35 Zoom Use 0% Tactical HUD 0 Map Filters NONE Filters NONE Steam 1 RUN: 80b2676d-9307-4bef-ae3a-ff297c2ca188